[Event "Titled Tuesday Blitz February 21 Early 2023"]
[White "Terry, Renato"]
[Black "Fernandez Guillen, Ernesto J."]
[WhiteFideId "3803457"]
[BlackFideId "3512428"]
[WhiteElo "2520"]
[BlackElo "2477"]
[Result "1-0"]
[Round "07"]
[TimeControl "180+2"]
[Date "2023.02.21"]
[WhiteClock "0:00:15"]
[BlackClock "0:00:13"]

1. Nf3 {[%clk 0:03:00]}  Nf6 {[%clk 0:02:56]} 2. b3 {[%clk 0:03:00]}  g6 {[%clk 0:02:56]} 3. Bb2 {[%clk 0:03:01]}  Bg7 {[%clk 0:02:57]} 4. g3 {[%clk 0:03:01]}  O-O {[%clk 0:02:56]} 5. c4 {[%clk 0:03:01]}  b6 {[%clk 0:02:57]} 6. Bg2 {[%clk 0:03:01]}  Bb7 {[%clk 0:02:57]} 7. O-O {[%clk 0:03:02]}  d6 {[%clk 0:02:57]} 8. d4 {[%clk 0:03:02]}  Nbd7 {[%clk 0:02:57]} 9. Nc3 {[%clk 0:03:00]}  e5 {[%clk 0:02:54]} 10. dxe5 {[%clk 0:02:33]}  dxe5 {[%clk 0:02:50]} 11. Qc2 {[%clk 0:02:25]}  Qe7 {[%clk 0:02:36]} 12. Rad1 {[%clk 0:02:21]}  Rfd8 {[%clk 0:02:35]} 13. Nb5 {[%clk 0:02:21]}  Ne8 {[%clk 0:02:26]} 14. Ba3 {[%clk 0:02:21]}  c5 {[%clk 0:02:20]} 15. Rd2 {[%clk 0:02:06]}  e4 {[%clk 0:02:15]} 16. Nh4 {[%clk 0:01:58]}  f5 {[%clk 0:01:48]} 17. Rfd1 {[%clk 0:01:55]}  Ne5 {[%clk 0:01:45]} 18. Rxd8 {[%clk 0:01:42]}  Rxd8 {[%clk 0:01:46]} 19. Nxa7 {[%clk 0:01:27]}  Nc7 {[%clk 0:01:41]} 20. Bc1 {[%clk 0:01:14]}  Ne6 {[%clk 0:01:19]} 21. Rxd8+ {[%clk 0:01:01]}  Qxd8 {[%clk 0:01:19]} 22. Nb5 {[%clk 0:00:57]}  Nd4 {[%clk 0:00:46]} 23. Qd2 {[%clk 0:00:57]}  Qd7 {[%clk 0:00:45]} 24. e3 {[%clk 0:00:47]}  Nxb5 {[%clk 0:00:44]} 25. Qxd7 {[%clk 0:00:47]}  Nxd7 {[%clk 0:00:45]} 26. cxb5 {[%clk 0:00:48]}  Bf6 {[%clk 0:00:43]} 27. Bf1 {[%clk 0:00:48]}  Bxh4 {[%clk 0:00:40]} 28. gxh4 {[%clk 0:00:49]}  Ne5 {[%clk 0:00:25]} 29. Bb2 {[%clk 0:00:49]}  Nf3+ {[%clk 0:00:14]} 30. Kh1 {[%clk 0:00:50]}  Bd5 {[%clk 0:00:14]} 31. Bf6 {[%clk 0:00:48]}  Nd2 {[%clk 0:00:09]} 32. Be2 {[%clk 0:00:47]}  c4 {[%clk 0:00:10]} 33. b4 {[%clk 0:00:38]}  Nb1 {[%clk 0:00:07]} 34. a4 {[%clk 0:00:32]}  c3 {[%clk 0:00:06]} 35. Bd1 {[%clk 0:00:33]}  Bc4 {[%clk 0:00:06]} 36. Bd4 {[%clk 0:00:20]}  Bd3 {[%clk 0:00:04]} 37. a5 {[%clk 0:00:17]}  bxa5 {[%clk 0:00:04]} 38. bxa5 {[%clk 0:00:18]}  Bxb5 {[%clk 0:00:04]} 39. Bc2 {[%clk 0:00:17]}  Na3 {[%clk 0:00:03]} 40. Bb3+ {[%clk 0:00:18]}  Bc4 {[%clk 0:00:03]} 41. Bxc4+ {[%clk 0:00:17]}  Nxc4 {[%clk 0:00:04]} 42. Bxc3 {[%clk 0:00:18]}  Kf7 {[%clk 0:00:05]} 43. a6 {[%clk 0:00:18]}  Nb6 {[%clk 0:00:05]} 44. Ba5 {[%clk 0:00:17]}  Na8 {[%clk 0:00:06]} 45. Kg2 {[%clk 0:00:17]}  Ke6 {[%clk 0:00:07]} 46. Kg3 {[%clk 0:00:17]}  Ke5 {[%clk 0:00:07]} 47. Bd8 {[%clk 0:00:18]}  Ke6 {[%clk 0:00:07]} 48. Kf4 {[%clk 0:00:17]}  h6 {[%clk 0:00:08]} 49. Ba5 {[%clk 0:00:17]}  Kd5 {[%clk 0:00:08]} 50. h5 {[%clk 0:00:17]}  gxh5 {[%clk 0:00:07]} 51. Kxf5 {[%clk 0:00:18]}  h4 {[%clk 0:00:07]} 52. Kf4 {[%clk 0:00:14]}  h3 {[%clk 0:00:08]} 53. Kf5 {[%clk 0:00:14]}  Kc6 {[%clk 0:00:08]} 54. Kxe4 {[%clk 0:00:13]}  Kb5 {[%clk 0:00:09]} 55. Bd8 {[%clk 0:00:14]}  Kxa6 {[%clk 0:00:09]} 56. f4 {[%clk 0:00:13]}  Kb7 {[%clk 0:00:10]} 57. f5 {[%clk 0:00:14]}  Kc8 {[%clk 0:00:11]} 58. Ba5 {[%clk 0:00:14]}  Kd7 {[%clk 0:00:12]} 59. Ke5 {[%clk 0:00:14]}  Ke7 {[%clk 0:00:12]} 60. f6+ {[%clk 0:00:14]}  Kf7 {[%clk 0:00:13]} 61. Kf5 {[%clk 0:00:15]} 1-0


[Site "https://www.chess.com"]

[Event "Titled Tuesday Blitz February 21 Early 2023"]
[White "Paravyan, David"]
[Black "Bharath Subramaniyam H"]
[WhiteFideId "4194985"]
[BlackFideId "46634827"]
[WhiteElo "2601"]
[BlackElo "2517"]
[Result "1-0"]
[Round "07"]
[TimeControl "180+2"]
[Date "2023.02.21"]
[WhiteClock "0:00:31"]
[BlackClock "0:00:19"]

1. d4 {[%clk 0:03:00]}  Nf6 {[%clk 0:02:56]} 2. c4 {[%clk 0:03:01]}  g6 {[%clk 0:02:57]} 3. Nf3 {[%clk 0:03:01]}  Bg7 {[%clk 0:02:56]} 4. Nc3 {[%clk 0:03:01]}  d5 {[%clk 0:02:57]} 5. cxd5 {[%clk 0:03:00]}  Nxd5 {[%clk 0:02:57]} 6. e4 {[%clk 0:03:00]}  Nxc3 {[%clk 0:02:58]} 7. bxc3 {[%clk 0:03:01]}  O-O {[%clk 0:02:59]} 8. Be2 {[%clk 0:03:01]}  c5 {[%clk 0:02:58]} 9. O-O {[%clk 0:03:01]}  cxd4 {[%clk 0:02:52]} 10. cxd4 {[%clk 0:03:01]}  Bg4 {[%clk 0:02:52]} 11. Be3 {[%clk 0:03:01]}  Nc6 {[%clk 0:02:50]} 12. d5 {[%clk 0:02:55]}  Bxf3 {[%clk 0:02:48]} 13. Bxf3 {[%clk 0:02:52]}  Ne5 {[%clk 0:02:48]} 14. Rb1 {[%clk 0:02:50]}  b6 {[%clk 0:02:33]} 15. Be2 {[%clk 0:02:49]}  Rc8 {[%clk 0:02:33]} 16. Qa4 {[%clk 0:02:47]}  Qc7 {[%clk 0:02:18]} 17. Rfc1 {[%clk 0:02:45]}  Qd7 {[%clk 0:02:04]} 18. Qxd7 {[%clk 0:02:30]}  Nxd7 {[%clk 0:02:04]} 19. Ba6 {[%clk 0:02:31]}  Rxc1+ {[%clk 0:01:40]} 20. Rxc1 {[%clk 0:02:32]}  Be5 {[%clk 0:01:41]} 21. Rc4 {[%clk 0:01:44]}  Rb8 {[%clk 0:01:33]} 22. Bb5 {[%clk 0:01:38]}  Nc5 {[%clk 0:01:33]} 23. f4 {[%clk 0:01:38]}  Bb2 {[%clk 0:01:26]} 24. Kf2 {[%clk 0:01:36]}  Rd8 {[%clk 0:01:13]} 25. Rc2 {[%clk 0:01:22]}  Nxe4+ {[%clk 0:01:09]} 26. Kf3 {[%clk 0:01:22]}  Nd6 {[%clk 0:01:07]} 27. Rxb2 {[%clk 0:01:22]}  Nf5 {[%clk 0:01:01]} 28. Bc6 {[%clk 0:01:20]}  e6 {[%clk 0:01:01]} 29. Rd2 {[%clk 0:01:05]}  Rd6 {[%clk 0:00:55]} 30. Bb7 {[%clk 0:00:57]}  Rd7 {[%clk 0:00:52]} 31. Ba6 {[%clk 0:00:54]}  Rxd5 {[%clk 0:00:42]} 32. Rxd5 {[%clk 0:00:53]}  exd5 {[%clk 0:00:43]} 33. Bb7 {[%clk 0:00:47]}  d4 {[%clk 0:00:43]} 34. Bf2 {[%clk 0:00:46]}  Nd6 {[%clk 0:00:35]} 35. Bc6 {[%clk 0:00:42]}  d3 {[%clk 0:00:33]} 36. Ke3 {[%clk 0:00:39]}  Kf8 {[%clk 0:00:25]} 37. Kxd3 {[%clk 0:00:39]}  Ke7 {[%clk 0:00:26]} 38. Bf3 {[%clk 0:00:39]}  Kd7 {[%clk 0:00:26]} 39. g4 {[%clk 0:00:38]}  Ne8 {[%clk 0:00:23]} 40. Bd4 {[%clk 0:00:37]}  Nc7 {[%clk 0:00:22]} 41. h4 {[%clk 0:00:36]}  Ne6 {[%clk 0:00:22]} 42. Be3 {[%clk 0:00:35]}  Kd6 {[%clk 0:00:22]} 43. g5 {[%clk 0:00:32]}  Ng7 {[%clk 0:00:22]} 44. Bg4 {[%clk 0:00:32]}  Kd5 {[%clk 0:00:21]} 45. Bd4 {[%clk 0:00:32]}  Ne8 {[%clk 0:00:20]} 46. f5 {[%clk 0:00:31]}  Nd6 {[%clk 0:00:19]} 47. Bf3+ {[%clk 0:00:31]} 1-0


[Site "https://www.chess.com"]

[Event "Titled Tuesday Blitz February 21 Early 2023"]
[White "Deac, Bogdan-Daniel"]
[Black "Sanal, Vahap"]
[WhiteFideId "1226380"]
[BlackFideId "6300545"]
[WhiteElo "2700"]
[BlackElo "2600"]
[Result "1-0"]
[Round "07"]
[TimeControl "180+2"]
[Date "2023.02.21"]
[WhiteClock "0:00:08"]
[BlackClock "0:00:01"]

1. d4 {[%clk 0:02:53]}  d5 {[%clk 0:02:57]} 2. c4 {[%clk 0:02:51]}  e6 {[%clk 0:02:58]} 3. Nf3 {[%clk 0:02:52]}  Nf6 {[%clk 0:02:58]} 4. g3 {[%clk 0:02:53]}  Bb4+ {[%clk 0:02:56]} 5. Nc3 {[%clk 0:02:51]}  O-O {[%clk 0:02:55]} 6. Bg2 {[%clk 0:02:51]}  b6 {[%clk 0:02:49]} 7. O-O {[%clk 0:02:43]}  Bb7 {[%clk 0:02:49]} 8. Qb3 {[%clk 0:02:43]}  Be7 {[%clk 0:02:45]} 9. cxd5 {[%clk 0:02:30]}  exd5 {[%clk 0:02:44]} 10. Bf4 {[%clk 0:02:26]}  a6 {[%clk 0:02:35]} 11. Rac1 {[%clk 0:02:20]}  Bd6 {[%clk 0:02:26]} 12. Ne5 {[%clk 0:02:13]}  Be7 {[%clk 0:02:03]} 13. Bg5 {[%clk 0:01:48]}  c6 {[%clk 0:01:54]} 14. Na4 {[%clk 0:01:36]}  b5 {[%clk 0:01:51]} 15. Nc5 {[%clk 0:01:16]}  Bc8 {[%clk 0:01:49]} 16. Rfd1 {[%clk 0:01:02]}  Ra7 {[%clk 0:01:34]} 17. Bxf6 {[%clk 0:00:23]}  Bxf6 {[%clk 0:01:34]} 18. e4 {[%clk 0:00:24]}  dxe4 {[%clk 0:01:30]} 19. Bxe4 {[%clk 0:00:23]}  Rc7 {[%clk 0:01:26]} 20. Qf3 {[%clk 0:00:23]}  Qe8 {[%clk 0:01:18]} 21. Re1 {[%clk 0:00:20]}  Re7 {[%clk 0:01:05]} 22. Qf4 {[%clk 0:00:16]}  h6 {[%clk 0:00:55]} 23. h4 {[%clk 0:00:13]}  Qd8 {[%clk 0:00:55]} 24. Bb1 {[%clk 0:00:11]}  Qd5 {[%clk 0:00:46]} 25. Bc2 {[%clk 0:00:02]}  Bxe5 {[%clk 0:00:19]} 26. dxe5 {[%clk 0:00:02]}  Qxa2 {[%clk 0:00:05]} 27. Qe4 {[%clk 0:00:02]}  g6 {[%clk 0:00:05]} 28. Qf4 {[%clk 0:00:03]}  Qd5 {[%clk 0:00:05]} 29. Bb3 {[%clk 0:00:02]}  Qd8 {[%clk 0:00:05]} 30. Qxh6 {[%clk 0:00:02]}  Be6 {[%clk 0:00:04]} 31. Nxe6 {[%clk 0:00:02]}  fxe6 {[%clk 0:00:03]} 32. Qxg6+ {[%clk 0:00:02]}  Kh8 {[%clk 0:00:04]} 33. Bxe6 {[%clk 0:00:02]}  Rg7 {[%clk 0:00:02]} 34. Qh6+ {[%clk 0:00:03]}  Rh7 {[%clk 0:00:03]} 35. Qe3 {[%clk 0:00:03]}  Qe7 {[%clk 0:00:03]} 36. Bh3 {[%clk 0:00:03]}  c5 {[%clk 0:00:02]} 37. Qxc5 {[%clk 0:00:03]}  Qf7 {[%clk 0:00:02]} 38. Qe3 {[%clk 0:00:03]}  Qe7 {[%clk 0:00:02]} 39. e6 {[%clk 0:00:03]}  Rg8 {[%clk 0:00:01]} 40. Bg2 {[%clk 0:00:03]}  Qg7 {[%clk 0:00:01]} 41. Qe5 {[%clk 0:00:03]}  Qxe5 {[%clk 0:00:01]} 42. Rxe5 {[%clk 0:00:03]}  Re7 {[%clk 0:00:02]} 43. Rh5+ {[%clk 0:00:03]}  Kg7 {[%clk 0:00:02]} 44. Rg5+ {[%clk 0:00:04]}  Kh8 {[%clk 0:00:03]} 45. Rxg8+ {[%clk 0:00:05]}  Kxg8 {[%clk 0:00:04]} 46. Rc8+ {[%clk 0:00:06]}  Kg7 {[%clk 0:00:04]} 47. Rxb8 {[%clk 0:00:06]}  Rxe6 {[%clk 0:00:05]} 48. Rb7+ {[%clk 0:00:07]}  Kf6 {[%clk 0:00:05]} 49. Bf3 {[%clk 0:00:07]}  Ke5 {[%clk 0:00:05]} 50. Kg2 {[%clk 0:00:07]}  Kd4 {[%clk 0:00:05]} 51. h5 {[%clk 0:00:08]}  Kc4 {[%clk 0:00:06]} 52. g4 {[%clk 0:00:08]}  Re5 {[%clk 0:00:05]} 53. h6 {[%clk 0:00:08]}  Re8 {[%clk 0:00:03]} 54. h7 {[%clk 0:00:08]}  Kb3 {[%clk 0:00:02]} 55. g5 {[%clk 0:00:08]}  Kxb2 {[%clk 0:00:01]} 56. g6 {[%clk 0:00:08]}  b4 {[%clk 0:00:01]} 57. g7 {[%clk 0:00:08]} 1-0


[Site "https://www.chess.com"]

[Event "Titled Tuesday Blitz February 21 Early 2023"]
[White "Molina, Roberto Junio Brito"]
[Black "Navara, David"]
[WhiteFideId "2109450"]
[BlackFideId "309095"]
[WhiteElo "2403"]
[BlackElo "2678"]
[Result "1/2-1/2"]
[Round "07"]
[TimeControl "180+2"]
[Date "2023.02.21"]
[WhiteClock "0:00:30"]
[BlackClock "0:00:34"]

1. d4 {[%clk 0:02:59]}  Nf6 {[%clk 0:02:59]} 2. c4 {[%clk 0:02:58]}  e6 {[%clk 0:03:00]} 3. Nf3 {[%clk 0:02:58]}  b6 {[%clk 0:03:00]} 4. g3 {[%clk 0:02:56]}  Ba6 {[%clk 0:03:01]} 5. Qa4 {[%clk 0:02:55]}  Bb7 {[%clk 0:02:57]} 6. Bg2 {[%clk 0:02:54]}  c5 {[%clk 0:02:57]} 7. O-O {[%clk 0:02:53]}  cxd4 {[%clk 0:02:56]} 8. Nxd4 {[%clk 0:02:54]}  Bxg2 {[%clk 0:02:56]} 9. Kxg2 {[%clk 0:02:54]}  Qc8 {[%clk 0:02:47]} 10. Nc3 {[%clk 0:02:52]}  Qb7+ {[%clk 0:02:36]} 11. f3 {[%clk 0:02:52]}  Be7 {[%clk 0:02:33]} 12. Rd1 {[%clk 0:02:50]}  Nc6 {[%clk 0:02:30]} 13. Nxc6 {[%clk 0:02:33]}  dxc6 {[%clk 0:02:30]} 14. Bg5 {[%clk 0:02:29]}  O-O {[%clk 0:02:29]} 15. Rd3 {[%clk 0:02:26]}  Rfd8 {[%clk 0:02:25]} 16. Rad1 {[%clk 0:02:25]}  Rxd3 {[%clk 0:02:11]} 17. Rxd3 {[%clk 0:02:26]}  Rd8 {[%clk 0:02:11]} 18. Rxd8+ {[%clk 0:02:22]}  Bxd8 {[%clk 0:02:12]} 19. Qd1 {[%clk 0:02:13]}  Be7 {[%clk 0:02:12]} 20. Qd3 {[%clk 0:02:10]}  h6 {[%clk 0:02:10]} 21. Bf4 {[%clk 0:02:00]}  a6 {[%clk 0:02:08]} 22. a4 {[%clk 0:01:58]}  Nd7 {[%clk 0:02:06]} 23. Bd6 {[%clk 0:01:53]}  Nc5 {[%clk 0:02:05]} 24. Bxc5 {[%clk 0:01:50]}  Bxc5 {[%clk 0:02:06]} 25. Ne4 {[%clk 0:01:42]}  Be7 {[%clk 0:01:59]} 26. b3 {[%clk 0:01:37]}  Qc7 {[%clk 0:01:53]} 27. c5 {[%clk 0:01:21]}  b5 {[%clk 0:01:43]} 28. axb5 {[%clk 0:01:19]}  axb5 {[%clk 0:01:44]} 29. b4 {[%clk 0:01:17]}  Qa7 {[%clk 0:01:39]} 30. Qd4 {[%clk 0:01:09]}  Qa2 {[%clk 0:01:34]} 31. Kf2 {[%clk 0:01:08]}  Qd5 {[%clk 0:01:29]} 32. Ke3 {[%clk 0:00:55]}  Kf8 {[%clk 0:01:24]} 33. h4 {[%clk 0:00:53]}  f5 {[%clk 0:01:16]} 34. Nf2 {[%clk 0:00:48]}  Bf6 {[%clk 0:01:05]} 35. Qxd5 {[%clk 0:00:47]}  exd5 {[%clk 0:01:06]} 36. Nd3 {[%clk 0:00:44]}  g5 {[%clk 0:00:56]} 37. hxg5 {[%clk 0:00:41]}  hxg5 {[%clk 0:00:56]} 38. g4 {[%clk 0:00:39]}  fxg4 {[%clk 0:00:45]} 39. fxg4 {[%clk 0:00:40]}  Bc3 {[%clk 0:00:45]} 40. Kf3 {[%clk 0:00:37]}  Ke7 {[%clk 0:00:46]} 41. e3 {[%clk 0:00:32]}  Ke6 {[%clk 0:00:36]} 42. Ke2 {[%clk 0:00:31]}  Kd7 {[%clk 0:00:34]} 43. Kf3 {[%clk 0:00:30]}  Ke6 {[%clk 0:00:34]} 44. Ke2 {[%clk 0:00:30]}  Kd7 {[%clk 0:00:34]} 45. Kf3 {[%clk 0:00:30]}  Ke6 {[%clk 0:00:34]} 1/2-1/2


[Site "https://www.chess.com"]

[Event "Titled Tuesday Blitz February 21 Early 2023"]
[White "Bortnyk, Mykola"]
[Black "Rakhmanov, Aleksandr"]
[WhiteFideId "14120836"]
[BlackFideId "4173708"]
[WhiteElo "2425"]
[BlackElo "2632"]
[Result "0-1"]
[Round "07"]
[TimeControl "180+2"]
[Date "2023.02.21"]
[WhiteClock "0:00:02"]
[BlackClock "0:00:05"]

1. e4 {[%clk 0:02:54]}  c5 {[%clk 0:02:59]} 2. c3 {[%clk 0:02:54]}  e6 {[%clk 0:02:57]} 3. d4 {[%clk 0:02:54]}  d5 {[%clk 0:02:57]} 4. exd5 {[%clk 0:02:52]}  exd5 {[%clk 0:02:57]} 5. Nf3 {[%clk 0:02:52]}  Nc6 {[%clk 0:02:57]} 6. Bb5 {[%clk 0:02:52]}  Bd6 {[%clk 0:02:57]} 7. dxc5 {[%clk 0:02:52]}  Bxc5 {[%clk 0:02:57]} 8. O-O {[%clk 0:02:51]}  Ne7 {[%clk 0:02:58]} 9. Nbd2 {[%clk 0:02:51]}  O-O {[%clk 0:02:57]} 10. Nb3 {[%clk 0:02:51]}  Bb6 {[%clk 0:02:55]} 11. h3 {[%clk 0:02:47]}  Nf5 {[%clk 0:02:39]} 12. Bf4 {[%clk 0:02:41]}  h6 {[%clk 0:02:29]} 13. Qd2 {[%clk 0:02:35]}  Be6 {[%clk 0:02:26]} 14. Rad1 {[%clk 0:02:31]}  a6 {[%clk 0:02:21]} 15. Bd3 {[%clk 0:02:28]}  Qf6 {[%clk 0:02:14]} 16. Rfe1 {[%clk 0:02:19]}  Rfe8 {[%clk 0:02:13]} 17. Ne5 {[%clk 0:02:17]}  Rad8 {[%clk 0:01:47]} 18. Nxc6 {[%clk 0:01:58]}  bxc6 {[%clk 0:01:48]} 19. Bxa6 {[%clk 0:01:52]}  Nh4 {[%clk 0:01:44]} 20. Bg3 {[%clk 0:01:37]}  Bxh3 {[%clk 0:01:31]} 21. Bf1 {[%clk 0:01:16]}  Bg4 {[%clk 0:01:20]} 22. Rxe8+ {[%clk 0:01:13]}  Rxe8 {[%clk 0:01:19]} 23. Re1 {[%clk 0:01:14]}  Rxe1 {[%clk 0:01:12]} 24. Qxe1 {[%clk 0:01:15]}  Nf5 {[%clk 0:01:10]} 25. Qe8+ {[%clk 0:01:13]}  Kh7 {[%clk 0:01:09]} 26. Bd3 {[%clk 0:01:14]}  h5 {[%clk 0:00:27]} 27. a4 {[%clk 0:01:13]}  h4 {[%clk 0:00:26]} 28. Be5 {[%clk 0:01:13]}  Qg5 {[%clk 0:00:23]} 29. Qxf7 {[%clk 0:01:09]}  Bxf2+ {[%clk 0:00:18]} 30. Kh1 {[%clk 0:00:58]}  h3 {[%clk 0:00:17]} 31. Qxg7+ {[%clk 0:00:15]}  Qxg7 {[%clk 0:00:16]} 32. Bxg7 {[%clk 0:00:16]}  Kxg7 {[%clk 0:00:12]} 33. gxh3 {[%clk 0:00:14]}  Bxh3 {[%clk 0:00:02]} 34. Kh2 {[%clk 0:00:14]}  Bg4 {[%clk 0:00:03]} 35. a5 {[%clk 0:00:14]}  Kf6 {[%clk 0:00:03]} 36. a6 {[%clk 0:00:14]}  Ke5 {[%clk 0:00:04]} 37. Bxf5 {[%clk 0:00:10]}  Bxf5 {[%clk 0:00:02]} 38. Nd4 {[%clk 0:00:11]}  Bc8 {[%clk 0:00:01]} 39. Nxc6+ {[%clk 0:00:08]}  Kd6 {[%clk 0:00:02]} 40. a7 {[%clk 0:00:06]}  Bb7 {[%clk 0:00:02]} 41. Na5 {[%clk 0:00:07]}  Ba8 {[%clk 0:00:02]} 42. Nb3 {[%clk 0:00:06]}  Bxa7 {[%clk 0:00:03]} 43. Kg3 {[%clk 0:00:07]}  Ke5 {[%clk 0:00:03]} 44. Kf3 {[%clk 0:00:05]}  Bb7 {[%clk 0:00:04]} 45. Ke2 {[%clk 0:00:04]}  Ba6+ {[%clk 0:00:04]} 46. Kd2 {[%clk 0:00:05]}  Ke4 {[%clk 0:00:04]} 47. Nc1 {[%clk 0:00:05]}  Be3+ {[%clk 0:00:04]} 48. Kc2 {[%clk 0:00:06]}  Bb5 {[%clk 0:00:04]} 49. Na2 {[%clk 0:00:05]}  Ba4+ {[%clk 0:00:04]} 50. b3 {[%clk 0:00:05]}  Bd7 {[%clk 0:00:04]} 51. Nb4 {[%clk 0:00:03]}  Bf5 {[%clk 0:00:05]} 52. Nc6 {[%clk 0:00:02]}  Bc5 {[%clk 0:00:05]} 53. Kb2 {[%clk 0:00:02]}  Kd3 {[%clk 0:00:05]} 54. Ne5+ {[%clk 0:00:02]}  Ke4 {[%clk 0:00:04]} 55. Nc6 {[%clk 0:00:02]}  Bd6 {[%clk 0:00:05]} 56. Na7 {[%clk 0:00:02]}  Kd3 {[%clk 0:00:04]} 57. Nb5 {[%clk 0:00:02]}  Be5 {[%clk 0:00:05]} 0-1


[Site "https://www.chess.com"]

[Event "Titled Tuesday Blitz February 21 Early 2023"]
[White "Boruchovsky, Avital"]
[Black "Kovalenko, Igor"]
[WhiteFideId "2800055"]
[BlackFideId "14117908"]
[WhiteElo "2539"]
[BlackElo "2674"]
[Result "0-1"]
[Round "07"]
[TimeControl "180+2"]
[Date "2023.02.21"]
[WhiteClock "0:00:05"]
[BlackClock "0:01:19"]

1. d4 {[%clk 0:03:00]}  d5 {[%clk 0:02:57]} 2. c4 {[%clk 0:03:00]}  e6 {[%clk 0:02:57]} 3. Nc3 {[%clk 0:03:00]}  Nf6 {[%clk 0:02:57]} 4. Bg5 {[%clk 0:02:55]}  c6 {[%clk 0:02:57]} 5. e3 {[%clk 0:02:53]}  Nbd7 {[%clk 0:02:57]} 6. Qc2 {[%clk 0:02:48]}  Be7 {[%clk 0:02:57]} 7. Nf3 {[%clk 0:02:47]}  h6 {[%clk 0:02:57]} 8. Bh4 {[%clk 0:02:46]}  O-O {[%clk 0:02:57]} 9. Bd3 {[%clk 0:02:39]}  a6 {[%clk 0:02:57]} 10. a4 {[%clk 0:02:31]}  a5 {[%clk 0:02:56]} 11. O-O {[%clk 0:02:28]}  Re8 {[%clk 0:02:56]} 12. c5 {[%clk 0:02:22]}  b6 {[%clk 0:02:54]} 13. cxb6 {[%clk 0:02:21]}  Qxb6 {[%clk 0:02:55]} 14. e4 {[%clk 0:02:16]}  Ba6 {[%clk 0:02:47]} 15. e5 {[%clk 0:02:13]}  Bxd3 {[%clk 0:02:47]} 16. Qxd3 {[%clk 0:02:12]}  Nh7 {[%clk 0:02:48]} 17. Bxe7 {[%clk 0:02:12]}  Rxe7 {[%clk 0:02:49]} 18. Rab1 {[%clk 0:02:03]}  Nhf8 {[%clk 0:02:48]} 19. h4 {[%clk 0:01:57]}  Rb8 {[%clk 0:02:47]} 20. b3 {[%clk 0:01:56]}  Ree8 {[%clk 0:02:46]} 21. Rfc1 {[%clk 0:01:53]}  Rec8 {[%clk 0:02:46]} 22. h5 {[%clk 0:01:49]}  Nh7 {[%clk 0:02:35]} 23. Qe3 {[%clk 0:01:46]}  Rc7 {[%clk 0:02:31]} 24. Ne2 {[%clk 0:01:44]}  Rbc8 {[%clk 0:02:29]} 25. Rc3 {[%clk 0:01:42]}  Qb4 {[%clk 0:02:22]} 26. Rbc1 {[%clk 0:01:40]}  c5 {[%clk 0:02:21]} 27. dxc5 {[%clk 0:01:37]}  Rxc5 {[%clk 0:02:21]} 28. Nfd4 {[%clk 0:00:51]}  Nhf8 {[%clk 0:02:12]} 29. f4 {[%clk 0:00:47]}  g6 {[%clk 0:01:56]} 30. Kh2 {[%clk 0:00:42]}  gxh5 {[%clk 0:01:49]} 31. f5 {[%clk 0:00:41]}  Rxc3 {[%clk 0:01:49]} 32. Rxc3 {[%clk 0:00:40]}  Rxc3 {[%clk 0:01:50]} 33. Nxc3 {[%clk 0:00:40]}  Nxe5 {[%clk 0:01:48]} 34. Qxe5 {[%clk 0:00:25]}  Qxc3 {[%clk 0:01:48]} 35. fxe6 {[%clk 0:00:23]}  Nxe6 {[%clk 0:01:42]} 36. Qb8+ {[%clk 0:00:23]}  Kh7 {[%clk 0:01:42]} 37. Nb5 {[%clk 0:00:09]}  Qe1 {[%clk 0:01:34]} 38. Nd6 {[%clk 0:00:04]}  Qe5+ {[%clk 0:01:33]} 39. Kh1 {[%clk 0:00:05]}  Ng5 {[%clk 0:01:24]} 40. Qb6 {[%clk 0:00:05]}  d4 {[%clk 0:01:23]} 41. Qc6 {[%clk 0:00:04]}  d3 {[%clk 0:01:21]} 42. Nc4 {[%clk 0:00:05]}  Qe1+ {[%clk 0:01:19]} 43. Kh2 {[%clk 0:00:05]}  d2 {[%clk 0:01:19]} 0-1


[Site "https://www.chess.com"]

[Event "Titled Tuesday Blitz February 21 Early 2023"]
[White "Iskusnyh, Sergei"]
[Black "Fedoseev, Vladimir"]
[WhiteFideId "4120027"]
[BlackFideId "24130737"]
[WhiteElo "2440"]
[BlackElo "2680"]
[Result "1-0"]
[Round "07"]
[TimeControl "180+2"]
[Date "2023.02.21"]
[WhiteClock "0:00:11"]
[BlackClock "0:00:04"]

1. d4 {[%clk 0:03:00]}  Nf6 {[%clk 0:01:07]} 2. c4 {[%clk 0:02:26]}  e6 {[%clk 0:01:06]} 3. g3 {[%clk 0:02:25]}  d5 {[%clk 0:01:05]} 4. Bg2 {[%clk 0:02:25]}  Be7 {[%clk 0:01:06]} 5. Nf3 {[%clk 0:02:24]}  O-O {[%clk 0:01:07]} 6. O-O {[%clk 0:02:25]}  dxc4 {[%clk 0:01:07]} 7. Qa4 {[%clk 0:02:24]}  b6 {[%clk 0:01:06]} 8. Qxc4 {[%clk 0:02:22]}  Bb7 {[%clk 0:01:06]} 9. Rd1 {[%clk 0:02:17]}  Nbd7 {[%clk 0:01:00]} 10. Bg5 {[%clk 0:02:08]}  a6 {[%clk 0:00:49]} 11. Qc2 {[%clk 0:02:04]}  Qc8 {[%clk 0:00:41]} 12. Nc3 {[%clk 0:01:58]}  h6 {[%clk 0:00:37]} 13. Bxf6 {[%clk 0:01:55]}  Nxf6 {[%clk 0:00:29]} 14. Rac1 {[%clk 0:01:51]}  Rd8 {[%clk 0:00:23]} 15. e3 {[%clk 0:01:31]}  Bd6 {[%clk 0:00:22]} 16. Qe2 {[%clk 0:01:20]}  b5 {[%clk 0:00:21]} 17. Nd2 {[%clk 0:01:13]}  Bxg2 {[%clk 0:00:20]} 18. Kxg2 {[%clk 0:01:13]}  c5 {[%clk 0:00:16]} 19. Nce4 {[%clk 0:01:10]}  Nxe4 {[%clk 0:00:08]} 20. Nxe4 {[%clk 0:01:09]}  c4 {[%clk 0:00:09]} 21. b3 {[%clk 0:01:04]}  Ba3 {[%clk 0:00:09]} 22. Rc2 {[%clk 0:00:59]}  f5 {[%clk 0:00:09]} 23. Nd2 {[%clk 0:00:48]}  Qb7+ {[%clk 0:00:03]} 24. Qf3 {[%clk 0:00:46]}  Qxf3+ {[%clk 0:00:02]} 25. Kxf3 {[%clk 0:00:45]}  cxb3 {[%clk 0:00:03]} 26. Nxb3 {[%clk 0:00:44]}  e5 {[%clk 0:00:04]} 27. Ke2 {[%clk 0:00:30]}  exd4 {[%clk 0:00:03]} 28. Rxd4 {[%clk 0:00:28]}  Rdc8 {[%clk 0:00:03]} 29. Rcd2 {[%clk 0:00:26]}  a5 {[%clk 0:00:03]} 30. Rd7 {[%clk 0:00:24]}  a4 {[%clk 0:00:03]} 31. Nd4 {[%clk 0:00:23]}  b4 {[%clk 0:00:03]} 32. Nxf5 {[%clk 0:00:22]}  b3 {[%clk 0:00:04]} 33. axb3 {[%clk 0:00:21]}  axb3 {[%clk 0:00:03]} 34. Rxg7+ {[%clk 0:00:21]}  Kh8 {[%clk 0:00:04]} 35. Rdd7 {[%clk 0:00:17]}  Bf8 {[%clk 0:00:04]} 36. Rh7+ {[%clk 0:00:17]}  Kg8 {[%clk 0:00:05]} 37. Nxh6+ {[%clk 0:00:11]}  Bxh6 {[%clk 0:00:04]} 38. Rxh6 {[%clk 0:00:11]} 1-0


[Site "https://www.chess.com"]